Cogmind - Beta 16.1 @@@ ROGUE MODE // 2026.03.25 @ 01:25:46 Player: Xintrosi Result: Destroyed by Executioner with Helical Railgun Performance ------------- Evolutions (7) 3500 Regions Visited (28) 5600 Robots Destroyed (409) 2045 Value Destroyed (22246) 22246 Prototype IDs (33) 660 Alien Tech Used (11) 2200 Bonus (20795) 20795 TOTAL SCORE: 57046 Bonus ------- Triggered Max Security 1000 High Alert Combat Kills 3845 Follower Combat Kills 3968 Network Hubs Disabled 200 Met Data Miner 300 Built Enhanced Grunts 300 A7 Reached Mainframe 300 Met R17 at Cetus 500 Used Core Reset Matrix 3000 Met R17 at Research 2000 Scanned by Researcher 500 Pursued by Intercept 500 Met Sigix 2000 Activated Exoskeleton 3000 Friendly Fire -618 Cogmind --------- Core Integrity 0/1300 Matter 295/300 Energy 100/100 System Corruption 15% +Membrane Temperature Cool (8) Movement Core (50) Location -3/Section 7 Parts ------- > --- POWER (3) -------- (None) > --- PROPULSION (6) --- (None) > --- UTILITY (9) ------ Advanced Signal Interpreter Improved Armor Integrity Analyzer > --- WEAPON (4) ------- (None) > --- INVENTORY (5) ---- Quantum Capacitor Core Stripper Peak State ------------ > --- POWER ------------ Matter Drive Antimatter-Quantum Reactor > --- PROPULSION ------- Treaded Armored-CIT Exoskeleton > --- UTILITY ---------- Armored Scrap Engine Advanced Heat Sink Experimental Cooling System Large Storage Unit Advanced Signal Interpreter Advanced Weapon Cycler Improved Core Shielding > --- WEAPON ----------- Sigix Shearcannon Hvy. Thermic Helical Construct/C > --- INVENTORY -------- Advanced Heat Sink Quantum Capacitor Sigix Sheargun Sigix Sheargun Linked Autogun Helical Railgun Core Stripper Sigix Containment Pod [Rating: 175] Favorites ----------- Power Constructs Engine Ion Engine Power Core Light Neutrino Core Reactor Constructs Propulsion Constructs Treads Constructs Leg Myomer Leg Wheel Subdweller Monowheel Hover Unit Improved Antigrav System Utility Armored Scrap Engine Device Armored Scrap Engine Storage Large Storage Unit Processor Advanced Targeting Computer Hackware Hacking Suite Protection Centrium Medium Armor Plating Artifact Phase Armor Weapon Constructs Energy Gun Beam Rifle Energy Cannon Constructs Ballistic Gun Subdweller Machine Gun Ballistic Cannon Constructs Launcher Grenade Launcher Special Weapon Flamer Impact Weapon Mace Slashing Weapon Ripper Build | -11 -10 -10 -9 -7 -7 -7 -7 -6 -6 -6 -6 -6 -5 -5 -5 -5 -5 -5 -4 -4 -4 -4 -4 -4 -3 -3 -3 -3 ------- Run | Yrd Mat Sub Rec Fac Low Low Zio Pro Fac Low Low Dat Pro Fac Ext Cet Arc Hub Fac Was Fac Upp Upp War Pro Res Qua Sec Slots Evolved 14 | . . . . 6 . . . . 2 . . . . 2 . . . . 2 . . . . . . 2 . . Power 2 | . . . . 1 . . . . . . . . . . . . . . . . . . . . . 1 . . Propulsion 4 | . . . . 2 . . . . . . . . . . . . . . 1 . . . . . . 1 . . Utility 6 | . . . . 2 . . . . 1 . . . . 2 . . . . 1 . . . . . . . . . Weapon 2 | . . . . 1 . . . . 1 . . . . . . . . . . . . . . . . . . . Parts Attached 135 | 7 2 10 10 6 2 . . 9 8 1 1 . . 8 3 3 . . 6 2 2 4 2 . 3 6 13 27 Power 11 | 1 . 1 1 . . . . . . . . . . . . . . . . . . 1 . . 1 . 2 4 Engine 3 | 1 . 1 1 . . . . . . . . . . . . . . . . . . . . . . . . . Core 1 | . . . . . . . . . . . . . . . . . . . . . . 1 . . . . . . Reactor 7 | . . . . . . . . . . . . . . . . . . . . . . . . . 1 . 2 4 Propulsion 14 | 2 2 1 5 . . . . . . . . . . . . . . . . . . . . . . . 2 2 Treads 7 | 2 2 . 2 . . . . . . . . . . . . . . . . . . . . . . . . 1 Leg 2 | . . . . . . . . . . . . . . . . . . . . . . . . . . . 1 1 Wheel 4 | . . 1 3 . . . . . . . . . . . . . . . . . . . . . . . . . Hover 1 | . . . . . . . . . . . . . . . . . . . . . . . . . . . 1 . Flight . | . . . . . . . . . . . . . . . . . . . . . . . . . . . . . Utility 77 | 2 . 2 1 6 1 . . 4 5 1 1 . . 8 3 3 . . 6 2 2 3 2 . 2 6 6 11 Device 43 | 1 . . 1 4 1 . . 3 1 1 1 . . 3 1 . . . 4 2 2 3 2 . 2 2 5 4 Storage 5 | 1 . . . 1 . . . 1 . . . . . . . . . . 1 . . . . . . 1 . . Processor 9 | . . . . 1 . . . . 1 . . . . 3 . . . . 1 . . . . . . 1 . 2 Hackware 1 | . . . . . . . . . . . . . . . . . . . . . . . . . . 1 . . Protection 18 | . . 2 . . . . . . 3 . . . . 2 2 3 . . . . . . . . . 1 . 5 Artifact 1 | . . . . . . . . . . . . . . . . . . . . . . . . . . . 1 . Weapon 33 | 2 . 6 3 . 1 . . 5 3 . . . . . . . . . . . . . . . . . 3 10 Energy Gun 7 | . . . 1 . . . . 1 . . . . . . . . . . . . . . . . . . . 5 Energy Cannon 2 | . . . . . . . . . . . . . . . . . . . . . . . . . . . 1 1 Ballistic Gun 13 | 2 . 5 1 . 1 . . . . . . . . . . . . . . . . . . . . . 1 3 Ballistic Cannon 1 | . . . . . . . . . . . . . . . . . . . . . . . . . . . 1 . Launcher 2 | . . . 1 . . . . . . . . . . . . . . . . . . . . . . . . 1 Special Weapon 2 | . . 1 . . . . . 1 . . . . . . . . . . . . . . . . . . . . Impact Weapon 2 | . . . . . . . . 2 . . . . . . . . . . . . . . . . . . . . Slashing Weapon 4 | . . . . . . . . 1 3 . . . . . . . . . . . . . . . . . . . Piercing Weapon . | . . . . . . . . . . . . . . . . . . . . . . . . . . . . . Special Melee Weapon . | . . . . . . . . . . . . . . . . . . . . . . . . . . . . . Unidentified Prototypes 17 | . . . 1 . . . . 1 . . . . . . . 1 . . . . 1 1 . . . 1 4 7 Corrupted Parts 1 | . . . . . . . . . . . . . . . . . . . . . . . 1 . . . . . System Corruption 10 | . . . . . . . . . . . . . . . . . . . . . . . 10 . . . . . Parts Lost 83 | . 2 3 . 1 4 2 . 7 7 . . . . 1 1 . . 2 . . . 5 . . 2 3 3 40 Power 14 | . . . . 1 1 . . 1 1 . . . . . . . . . . . . 1 . . 1 . . 8 Propulsion 19 | . 2 2 . . . 1 . 3 2 . . . . . . . . 1 . . . . . . . 1 . 7 Utility 31 | . . 1 . . . . . 1 2 . . . . 1 1 . . 1 . . . 3 . . 1 1 3 16 Weapon 19 | . . . . . 3 1 . 2 2 . . . . . . . . . . . . 1 . . . 1 . 9 Highest Loss Streak 16 | . 1 2 . 1 4 1 . 3 3 . . . . 1 1 . . 1 . . . 2 . . 1 2 1 16 To Critical Strikes 3 | . . . . . 1 . . . . . . . . . . . . . . . . . . . . . . 2 Average Backups 8 | 1 5 4 3 3 4 4 5 4 10 13 15 15 15 14 10 4 4 5 6 10 7 6 5 6 6 10 9 7 Power . | . 1 . . . . . . . . . . . . . . . . . . . . . . . . . . . Propulsion . | . 1 . . . . . . . . . . . . . . . . . . . . . . . . . . . Utility 4 | . 2 1 1 1 2 2 3 3 6 10 12 12 12 10 5 2 2 2 2 4 3 4 4 5 5 5 5 4 Weapon 2 | . 1 1 2 2 2 2 2 1 3 2 3 3 3 4 4 2 2 3 4 6 3 1 1 1 1 4 2 2 Tool/Special . | . . . . . . . . . . . . . . . . . . . . . . . . . . . . . Unused Backups 78 | . 1 4 1 . 1 . . 1 13 4 2 . . 9 9 . . . 1 2 3 1 . . . 7 13 6 Power 2 | . . . . . . . . . . . . . . . . . . . . . . . . . . . 2 . Propulsion 4 | . . 1 . . . . . . . . . . . . . . . . . . . . . . . . 2 1 Utility 21 | . . 2 . . 1 . . 1 4 2 2 . . 3 4 . . . . . . . . . . . 1 1 Weapon 51 | . 1 1 1 . . . . . 9 2 . . . 6 5 . . . 1 2 3 1 . . . 7 8 4 Tool/Special . | . . . . . . . . . . . . . . . . . . . . . . . . . . . . . Average Slot Usage (%) 56 | . 96 80 78 56 51 51 46 48 57 55 53 53 53 52 51 50 52 49 51 52 52 52 52 52 49 44 45 48 Engine 3 | . 14 14 14 4 5 1 . 4 4 3 2 6 6 2 . . . . . . . . . . . . . . Core 1 | . . . . 2 . 5 7 2 1 2 3 . . . 2 2 5 5 5 2 . 6 5 5 . . . . Reactor 1 | . . . . . . . . . . . . . . 2 2 2 . . . 2 4 . . . 4 6 5 6 Treads 5 | . 24 22 16 5 . . . 2 1 6 6 6 6 . 2 . . . . . . 1 4 5 5 3 1 2 Flight 1 | . . . . 2 7 4 7 4 2 . . . . 2 1 . . . . . . 3 . . . . 1 1 Device 13 | . 14 . 3 17 15 15 15 12 7 13 13 13 13 17 17 17 17 13 19 15 16 19 21 21 18 12 16 16 Storage 3 | . 14 . . . . . . . 6 6 6 6 6 5 2 . . . 2 5 5 5 5 5 5 4 4 3 Processor 5 | . . . . 4 7 7 7 7 6 6 6 6 6 5 5 5 5 5 6 10 10 10 10 10 10 6 5 6 Protection 3 | . . 13 10 . . . . . 3 . . . . 3 7 9 11 11 6 5 3 . . . . 2 . 2 Energy Cannon 2 | . . . . 11 . . . . 2 6 6 6 9 4 1 1 1 . . . 3 5 1 . 2 1 . 1 Ballistic Gun 4 | . 27 27 16 1 9 12 . . 3 1 . . . . . . . . . . . . . . . . . . Ballistic Cannon 2 | . . . . . . . . . . 3 6 6 2 2 3 3 3 5 5 5 1 . 3 5 2 2 3 3 Peak Build Rating 175 | 7 8 15 31 50 55 56 49 55 79 75 70 69 69 98 94 115 113 113 115 117 117 101 94 94 98 133 159 175 Average Rating 77 | 5 7 11 17 45 50 53 49 47 63 69 69 69 69 90 89 101 112 108 109 115 109 86 88 94 92 113 139 138 On Entrance 73 | . 7 8 11 31 50 55 49 49 52 75 69 69 69 69 91 83 112 113 100 112 115 101 85 94 94 87 123 148 Avg Prop Armor Cover (%) 7 | . . 4 4 15 . . . . . . . . . . . . . . . . . . . . . . . 3 Naked Turns . | . . . . . . . . . . . . . . . . . . . . . . . . . . . . . Heaviest Build 117 | 13 13 31 31 28 39 39 35 48 58 53 50 50 50 63 79 61 54 54 61 58 60 51 40 40 50 80 117 91 Greatest Support 158 | 40 40 40 43 38 22 44 44 53 103 103 52 52 52 83 98 127 127 127 136 136 140 34 148 148 148 151 155 158 Greatest Overweight (x) 9 | . . 9 9 1 1 2 . 1 3 1 . . . 1 1 1 . . . . 1 1 1 . . . 1 . Average Overweight (x) . | . . . . . . . . . . . . . . . . . . . . . . . . . . . . . Largest Inventory Capacity 15 | 8 8 8 5 10 5 5 5 15 15 15 15 15 15 15 15 5 5 5 10 10 10 10 10 10 10 15 15 15 Average Capacity 10 | 6 8 5 5 5 5 5 5 5 15 15 15 15 15 15 10 5 5 5 7 10 10 10 10 10 10 12 15 14 Most Carried 15 | 4 7 7 5 7 5 5 5 5 15 15 15 15 15 15 15 5 5 5 10 10 10 9 6 6 8 15 15 15 Average Carried 8 | 1 5 4 4 3 4 4 5 4 11 14 14 15 15 14 9 4 4 5 6 9 7 6 5 6 6 10 12 11 Final Capacity 15 | 8 8 5 5 5 5 5 5 15 15 15 15 15 15 15 5 5 5 5 10 10 10 10 10 10 10 15 15 5 Final Carried 15 | 4 7 4 3 5 4 5 5 4 15 15 15 15 15 12 5 4 5 5 10 8 9 5 6 6 4 15 12 4 Scrap Engine Consumption 515 | . . . 8 29 12 12 . 19 58 14 6 . 3 41 42 23 4 5 4 8 38 15 11 . 13 43 45 62 Constructs Created 13 | . . . 1 3 3 . . . 2 . . . . . 1 . . . . . . . . . . 2 . 1 Constructs Modified 221 | . . . . 7 6 7 . 7 22 5 3 . 1 19 18 9 2 2 4 3 19 7 5 . 7 18 23 27 Class Distribution -------------------- 69% | Construct 10% | Mutant 5% | Alien-Construct 4% | Subdweller-Mutant Dominant Class ---------------- Mutant | -10/Materials Mutant | -10/Subcaves Commander-Mutant | -9/Recycling Construct | -7/Factory Construct | -7/Lower Caves Construct | -7/Lower Caves Construct | -7/Zion Construct | -6/Proximity Caves Construct | -6/Factory Construct | -6/Lower Caves Construct | -6/Lower Caves Construct | -6/Data Miner Construct | -5/Proximity Caves Construct | -5/Factory Construct | -5/Extension Construct | -5/Cetus Commander-Construct | -5/Archives Construct | -5/Hub_04(d) Construct | -4/Factory Construct | -4/Waste Construct | -4/Factory Construct | -4/Upper Caves Construct | -4/Upper Caves Construct | -4/Warlord Construct | -3/Proximity Caves Construct | -3/Research Construct | -3/Quarantine Alien-Construct | -3/Section 7 Resources | -11 -10 -10 -9 -7 -7 -7 -7 -6 -6 -6 -6 -6 -5 -5 -5 -5 -5 -5 -4 -4 -4 -4 -4 -4 -3 -3 -3 -3 ----------- Run | Yrd Mat Sub Rec Fac Low Low Zio Pro Fac Low Low Dat Pro Fac Ext Cet Arc Hub Fac Was Fac Upp Upp War Pro Res Qua Sec Matter Collected 6804 | 280 119 346 213 223 79 155 . 300 261 86 193 . 125 415 1138 149 31 73 74 230 607 112 79 . 86 171 491 768 Remotely . | . . . . . . . . . . . . . . . . . . . . . . . . . . . . . Salvage Created 26864 | 101 526 489 600 505 566 758 . 1219 1610 500 596 . 284 1634 1684 538 188 593 168 1770 1851 755 511 . 839 848 2555 5176 Parts 1141 | 3 33 32 22 31 15 29 . 19 57 25 23 . 15 84 66 28 7 30 8 27 75 23 26 . 36 26 144 257 Haulers Intercepted 18 | . 2 . . 1 . . . 1 3 . . . . 2 . . . . . . 4 . . . . 3 1 1 Recyclers Shooed 4 | . . . 3 . . . . . 1 . . . . . . . . . . . . . . . . . . . Parts Field Recycled . | . . . . . . . . . . . . . . . . . . . . . . . . . . . . . Retrieved Matter . | . . . . . . . . . . . . . . . . . . . . . . . . . . . . . Parts Self-Destructed 138 | . . 19 . . 3 18 . 6 . 19 17 . 11 . . . . . . . . 11 13 . 21 . . . Prevented 5 | . . . . . 1 . . . . . . . . . . . . . . . . 2 2 . . . . . Parts Restored . | . . . . . . . . . . . . . . . . . . . . . . . . . . . . . Kills | -11 -10 -10 -9 -7 -7 -7 -7 -6 -6 -6 -6 -6 -5 -5 -5 -5 -5 -5 -4 -4 -4 -4 -4 -4 -3 -3 -3 -3 ------- Run | Yrd Mat Sub Rec Fac Low Low Zio Pro Fac Low Low Dat Pro Fac Ext Cet Arc Hub Fac Was Fac Upp Upp War Pro Res Qua Sec Combat Hostiles Destroyed 342 | . 10 13 1 10 6 12 . 16 15 9 11 . 9 28 26 7 2 4 . 6 25 15 9 . 12 6 27 63 Melee 12 | . . . . . . . . 4 6 . . . . . 1 . . . . . . . . . . . . 1 Guns 51 | . 10 13 . . 4 11 . 4 4 2 . . . . . . . . . . . . . . . . . 3 Cannons 237 | . . . . 10 1 . . . 2 7 11 . 8 16 24 7 2 4 . 6 19 13 7 . 12 6 24 58 AOE 23 | . . . 1 . . . . . 3 . . . . 11 . . . . . . 5 1 . . . . 1 1 Classes Destroyed 27 | 2 2 3 1 6 2 1 . . . 1 . . . 1 2 . . 1 . 1 . . . . . . 1 3 Worker 14 | . . . . 1 . . . . 3 . . . . 4 . . . 4 . . 2 . . . . . . . Builder 5 | . . . . . . . . . . . . . . 1 . . . 2 . . . . . . . . 1 1 Tunneler 1 | 1 . . . . . . . . . . . . . . . . . . . . . . . . . . . . Hauler 18 | . 2 . . 1 . . . 1 3 . . . . 2 . . . . . . 4 . . . . 3 1 1 Recycler 13 | 1 . . 6 . . . . . 3 . . . . . . . . 1 1 . . . . . . . . 1 Operator 6 | . . . . 1 . . . . 1 . . . . 1 1 . . 1 1 . . . . . . . . . Turret 2 | . . 2 . . . . . . . . . . . . . . . . . . . . . . . . . . Watcher 7 | . . . . 1 . . . . 1 . . . . . . 1 . 1 . . . . . . . 1 1 1 Swarmer 65 | . . 4 . 3 3 5 . 1 . 4 3 . 9 10 . . . . . . 5 9 3 . 1 . 2 3 Saboteur 5 | . . . . . . . . . . . . . . . 1 . . . . . . . . . . . . 4 Grunt 117 | . 10 2 . 3 . 5 . 11 5 4 5 . . 8 12 2 . 2 . . 10 3 2 . 8 3 5 17 Brawler 8 | . . . . 1 1 1 . . . . 2 . . . 1 . . . . . . . . . . . . 2 Duelist 10 | . . . . . 1 . . 2 1 . . . . 1 . . . . . . . . 1 . . . . 4 Researcher 1 | . . . . . . . . . . . . . . . . . . . . . . . . . . . . 1 Sentry 33 | . . . . 1 1 . . 1 4 . 1 . . 5 6 . 2 . . . 2 1 1 . 1 1 3 3 Demolisher 1 | . . . . . . . . . . . . . . . . . . 1 . . . . . . . . . . Specialist 1 | . . . . . . . . . . . . . . . 1 . . . . . . . . . . . . . Hunter 20 | . . . . . . 1 . . 2 . . . . . 2 . . 1 . . 2 . . . 2 . 4 6 Programmer 42 | . . . . 2 . . . 1 3 . . . . 4 1 . . . . . 6 1 1 . . 2 12 9 Behemoth 4 | . . . . . . . . . . 1 . . . . . . . . . . . 1 1 . . . . 1 Compactor 6 | . . . . . . . . . . . . . . . . . . . . 6 . . . . . . . . Cetus Guard 5 | . . . . . . . . . . . . . . . . 5 . . . . . . . . . . . . S7 Guard 2 | . . . . . . . . . . . . . . . . . . . . . . . . . . . . 2 Tracker 2 | . . . . . . . . . . . . . . . . . . . . . . . . . . . . 2 Combat Programmer 2 | . . . . . . . . . . . . . . . . . . . . . . . . . . . . 2 Striker 4 | . . . . . . . . . . . . . . . . . . . . . . . . . . . . 4 Executioner 4 | . . . . . . . . . . . . . . . . . . . . . . . . . . . . 4 Fortress 1 | . . . . . . . . . . . . . . . . . . . . . . . . . . . 1 . Subdweller 7 | . . 7 . . . . . . . . . . . . . . . . . . . . . . . . . . Scrapper 1 | . . . 1 . . . . . . . . . . . . . . . . . . . . . . . . . Decomposer 1 | . . . . . . 1 . . . . . . . . . . . . . . . . . . . . . . Samaritan 4 | . . . . . 2 1 . . . . . . 1 . . . . . . . . . . . . . . . Thug 1 | . . . . . . . . . . . . . . . 1 . . . . . . . . . . . . . Savage 1 | . . . . . . . . . . . . . . . 1 . . . . . . . . . . . . . Best Kill Streak 9 | 2 3 3 3 4 5 6 . 4 5 4 3 . 5 6 4 4 2 9 1 2 5 4 3 . 4 3 5 8 Combat Bots Only 8 | . 2 3 1 4 5 6 . 4 3 4 3 . 5 6 4 3 2 3 . 2 5 4 3 . 4 3 5 8 Max Kills in Single Turn 8 | 1 2 1 1 1 1 1 . 1 2 1 1 . 1 5 1 2 1 8 1 1 3 1 1 . 1 1 1 2 Gunslinging . | . . . . . . . . . . . . . . . . . . . . . . . . . . . . . Exploded 5 | . . . 1 . . . . . 2 . . . . 5 . . . . . . 3 1 . . . . 1 1 Melee 1 | . . . . . . . . 1 1 . . . . . 1 . . . . . . . . . . . . 1 Uniques/NPCs Destroyed . | . . . . . . . . . . . . . . . . . . . . . . . . . . . . . Combat | -11 -10 -10 -9 -7 -7 -7 -7 -6 -6 -6 -6 -6 -5 -5 -5 -5 -5 -5 -4 -4 -4 -4 -4 -4 -3 -3 -3 -3 -------- Run | Yrd Mat Sub Rec Fac Low Low Zio Pro Fac Low Low Dat Pro Fac Ext Cet Arc Hub Fac Was Fac Upp Upp War Pro Res Qua Sec Hostile Shots Fired 3081 | . 63 170 . 59 109 40 . 153 331 55 92 . 54 102 117 32 3 61 . . 139 129 50 . 188 149 255 730 Missed 967 | . 9 70 . 20 43 11 . 42 106 11 33 . 19 32 37 12 1 17 . . 37 29 17 . 47 50 100 224 Hits 2114 | . 54 100 . 39 66 29 . 111 225 44 59 . 35 70 80 20 2 44 . . 102 100 33 . 141 99 155 506 Melee 38 | . . . . . 2 . . 4 5 . . . . . 4 . . . . . 1 . . . . . . 22 Projectile 2076 | . 54 100 . 39 64 29 . 107 220 44 59 . 35 70 76 20 2 44 . . 101 100 33 . 141 99 155 484 AOE 6 | . . 2 . . . . . . . . . . . . 2 . . . . . . . . . . 2 . . Critical Strikes 106 | . . . . 2 1 . . 9 4 1 1 . . 3 6 2 . 8 . . 4 4 1 . 5 10 9 36 Actively Blocked 4 | . . . . . . . . . . . . . . . . . . . . . . . . . . . . 4 Part Disruptions 1 | . . . . . . . . . . . . . . . 1 . . . . . . . . . . . . . Damage Taken 40053 | . 697 1225 . 682 638 452 . 2094 2464 812 490 . 532 1645 1576 299 51 1495 . . 2140 1741 634 118 2325 2390 4176 11377 Core 4144 | . 157 91 . 122 61 65 . 272 391 42 23 . 59 101 108 39 . 166 . . 164 73 37 12 283 292 588 998 Absorbed by Shields 652 | . . . . . . . . . . . . . . . 118 208 . . . . . . . . . . . 326 Reduced by Siege Mode 372 | . . . . . . . . . . . . . . . . . . . . . . . . . . . . 372 Redirected to Core 276 | . . . . . . . . . . . . . . . . . . . . . . . . . . . 276 . Redirected to Shielding 175 | . . . . . . . . . . . . . . . . . . . . . . . . . . . . 175 Ignored by Resistances 753 | . . . . . . . . . . . . . . . . . . . . . . 82 84 . 401 . . 186 Regen/Repaired (Parts) 15601 | . 69 . . 106 250 163 . 968 1033 520 127 . 133 1027 650 329 30 275 103 153 1401 1099 891 . 431 1078 2191 2574 Core Remaining (%) 45 | 100 . . . . . . . 25 . . . . 39 . . . . 58 . . . . . . 50 . . . Volleys Fired 1283 | 5 48 59 18 36 24 30 . 44 62 20 23 . 17 78 61 19 4 33 10 56 70 34 16 . 32 48 138 298 Largest 2 | 2 2 2 2 2 2 2 . 1 2 2 2 . 2 2 1 1 1 1 1 1 1 1 1 . 1 1 1 2 Hottest 326 | 40 40 100 84 125 148 133 . 66 127 109 109 . 104 193 326 326 326 154 154 154 313 313 187 . 277 277 69 225 Shots Fired 1624 | 10 96 85 31 67 33 54 . 44 94 40 35 . 33 81 60 19 4 32 10 56 69 34 16 . 32 48 137 404 Gun 473 | 10 96 78 27 2 21 54 . 44 71 6 . . . . . . . . . . . . . . . . . 64 Cannon 1130 | . . . . 65 12 . . . 19 34 35 . 33 76 60 19 4 32 10 56 69 34 16 . 32 48 137 339 Launcher 14 | . . . 4 . . . . . 4 . . . . 5 . . . . . . . . . . . . . 1 Special 7 | . . 7 . . . . . . . . . . . . . . . . . . . . . . . . . . Kinetic 919 | 10 96 78 21 1 13 52 . . 23 40 35 . 31 44 35 19 . . 4 56 2 . 9 . 13 25 124 188 Thermal 552 | . . 7 6 66 16 2 . 44 58 . . . 2 23 8 . 4 32 6 . 67 22 . . 19 16 7 147 Explosive 13 | . . . 4 . . . . . 4 . . . . 5 . . . . . . . . . . . . . . Electromagnetic 71 | . . . . . 4 . . . 9 . . . . 9 17 . . . . . . 12 7 . . 7 6 . Slashing 68 | . . . . . . . . . . . . . . . . . . . . . . . . . . . . 68 Robot Hit Streak 27 | 4 10 6 8 13 18 15 . 20 14 10 11 . 6 11 7 4 6 3 3 22 21 5 13 . 27 12 16 15 Robot Miss Streak 7 | 2 3 3 1 3 2 4 . 6 3 2 2 . 3 5 3 2 1 4 3 5 4 3 3 . 2 3 3 7 Penetration Max 1 | . . . . . . . . . 1 . . . . 1 1 1 . . . 1 . . . . . . . 1 Secondary Targets 4 | . . 2 . . . 2 . . . . . . . . . . . . . . . . . . . . . . Max Gunslinging Chain 1 | . . 1 . . . 1 . . . . . . . . . . . . . . . . . . . . . . Shots Hit Robots 1168 | 6 65 52 23 39 28 43 . 72 120 32 21 . 14 51 39 12 3 17 5 52 54 22 13 . 26 29 102 228 Core Hits 637 | 3 32 20 12 20 15 34 . 63 49 18 7 . 7 33 26 8 2 18 1 12 31 9 6 . 10 15 39 147 Critical Kills 6 | . . . . . . . . 1 1 . . . . 1 . . . . . . . . . . 1 . . 2 Critical Parts Destroyed 9 | . . . . . . . . 3 2 . . . . 1 . . . . . . . . . . 1 . . 2 Critical Strikes 36 | . . 1 . 1 . . . 6 11 1 . . . 2 . . . . . . . . . . 2 . 2 10 Burn 1 | . . . . 1 . . . . . . . . . . . . . . . . . . . . . . . . Destroy 14 | . . 1 . . . . . . 2 1 . . . 2 . . . . . . . . . . 2 . 1 5 Blast 1 | . . . . . . . . . . . . . . . . . . . . . . . . . . . 1 . Smash 5 | . . . . . . . . 4 1 . . . . . . . . . . . . . . . . . . . Sever 15 | . . . . . . . . 2 8 . . . . . . . . . . . . . . . . . . 5 Melee Attacks 81 | . . . . . . . . 34 47 . . . . . . . . . . . . . . . . . . . Impact 23 | . . . . . . . . 22 1 . . . . . . . . . . . . . . . . . . . Slashing 58 | . . . . . . . . 12 46 . . . . . . . . . . . . . . . . . . . Piercing . | . . . . . . . . . . . . . . . . . . . . . . . . . . . . . Sneak Attacks 13 | . . . . . . . . 1 12 . . . . . . . . . . . . . . . . . . . Combat Hostiles . | . . . . . . . . . . . . . . . . . . . . . . . . . . . . . Follow-up Attacks 1 | . . . . . . . . . 1 . . . . . . . . . . . . . . . . . . . Damage Inflicted 83678 | 52 539 982 381 1595 819 972 . 2110 4158 1414 1514 . 957 6678 4077 1539 336 2671 378 6176 6683 2942 1963 . 3533 2979 9739 18491 Guns 6784 | 52 539 982 343 25 473 972 . 981 1401 124 . . . . . . . . . . . . . . . . . 892 Cannons 69209 | . . . . 1344 346 . . . 375 1290 1514 . 957 5262 4077 1539 336 1923 378 6176 5837 2907 1963 . 3411 2731 9526 17317 Explosions 4563 | . . . 38 226 . . . . 394 . . . . 1416 . . . 745 . . 846 35 . . 120 248 213 282 Melee 3117 | . . . . . . . . 1129 1988 . . . . . . . . . . . . . . . . . . . Ramming 5 | . . . . . . . . . . . . . . . . . . 3 . . . . . . 2 . . . Kinetic 41444 | 52 539 982 272 12 275 921 . . 547 1414 1514 . 886 3227 2728 1539 . . 71 6176 . . 1394 . 1605 1115 8837 7338 Thermal 30259 | . . . 71 1357 424 51 . 981 1174 . . . 71 2471 460 . 336 1969 307 . 6683 2002 . . 1926 1569 653 7754 Explosive 1159 | . . . 38 226 . . . . 356 . . . . 539 . . . . . . . . . . . . . . Electromagnetic 4295 | . . . . . 120 . . . 93 . . . . 441 889 . . 699 . . . 940 569 . . 295 249 . Impact 611 | . . . . . . . . 583 28 . . . . . . . . . . . . . . . . . . . Slashing 5905 | . . . . . . . . 546 1960 . . . . . . . . . . . . . . . . . . 3399 Piercing . | . . . . . . . . . . . . . . . . . . . . . . . . . . . . . Highest Corruption 24 | . . . . 1 2 2 2 . 4 . . . . 9 9 9 9 24 . . 5 9 19 19 . 11 15 15 Average Corruption 9 | . . . . 1 1 2 2 . 3 . . . . 8 9 9 9 9 . . 4 8 16 19 . 8 9 15 Corruption Purged 4 | . . . . . . . . . 4 . . . . . . . . . . . . . . . . . . . Corruption Blocked . | . . . . . . . . . . . . . . . . . . . . . . . . . . . . . Effects 418 | . . . . . 4 12 . . 15 . . . . 41 63 20 5 9 . . 13 24 34 3 . 35 47 93 Message Errors 105 | . . . . . . 1 . . 2 . . . . 10 19 7 2 1 . . 3 9 8 1 . 12 9 21 Matter Fused 91 | . . . . . 1 1 . . 7 . . . . 11 14 4 2 1 . . . 5 10 1 . 7 12 15 Heat Flow Errors 56 | . . . . . . 1 . . 2 . . . . 7 6 1 . 1 . . 4 5 3 1 . 6 9 10 Energy Discharges 55 | . . . . . 1 3 . . 1 . . . . 7 10 4 1 . . . 2 2 5 . . 4 4 11 Parts Rejected 5 | . . . . . . . . . 1 . . . . . 1 . . . . . 1 1 . . . . . 1 Parts Fused 4 | . . . . . . 1 . . . . . . . . . . . 1 . . . . 1 . . . 1 . Data Loss (minor) 51 | . . . . . 1 3 . . 1 . . . . 4 10 2 . 4 . . 1 2 1 . . 3 8 11 Data Loss (major) 21 | . . . . . 1 . . . . . . . . 1 2 2 . . . . 1 . 3 . . 2 1 8 Misfires 1 | . . . . . . . . . . . . . . . . . . . . . . . . . . . . 1 Alerts 9 | . . . . . . 2 . . 1 . . . . . . . . . . . . . 3 . . 1 1 1 Misdirections 4 | . . . . . . . . . . . . . . . . . . . . . . . . . . . 1 3 Weapon Failures 16 | . . . . . . . . . . . . . . 1 1 . . 1 . . 1 . . . . . 1 11 Overload Shots . | . . . . . . . . . . . . . . . . . . . . . . . . . . . . . Overflow Damage 6991 | . . . . 100 . . . 130 236 . 230 . 165 776 260 84 . 269 117 21 992 772 348 . 345 401 884 861 Projectiles 6274 | . . . . 99 . . . . . . 230 . 165 604 260 84 . 269 117 21 852 772 348 . 345 401 846 861 Explosions 351 | . . . . 1 . . . . . . . . . 172 . . . . . . 140 . . . . . 38 . Melee 366 | . . . . . . . . 130 236 . . . . . . . . . . . . . . . . . . . Knockbacks 106 | . . . . . . . . 2 . 5 3 . 5 11 7 2 . . . . . . 3 . 4 5 18 41 Impact 2 | . . . . . . . . 2 . . . . . . . . . . . . . . . . . . . . Kinetic 93 | . . . . . . . . . . 5 3 . 4 10 6 2 . . . . . . 3 . 4 4 18 34 Secondary 11 | . . . . . . . . . . . . . 1 1 1 . . . . . . . . . . 1 . 7 Self-Inflicted Damage 809 | . . . . 169 . . . . 67 . . . . 251 . . . 84 . . 93 47 . . 59 . . 39 Shots 17 | . . . . 2 . . . . 4 . . . . 5 . . . 1 . . 2 1 . . 1 . . 1 Rammed 1 | . . . . . . . . . . . . . . . . . . . . . . . . . 1 . . . Targets Rammed 2 | . . . . . . . . . . . . . . . . . . 1 . . . . . . 1 . . . Kicked 1 | . . . . . . . . . . . . . . . . . . 1 . . . . . . . . . . Crushed . | . . . . . . . . . . . . . . . . . . . . . . . . . . . . . Highest Temperature 534 | . 38 12 97 217 148 232 . 193 390 270 266 . . 443 275 242 221 290 156 299 423 376 256 142 236 223 349 534 Average Temperature 92 | . 11 10 32 56 51 80 . 38 122 81 70 . . 88 78 110 114 101 61 120 103 127 98 79 120 86 63 74 Received Heat Transfer 6987 | . 387 471 . 162 114 117 . 930 570 117 81 . . 222 455 20 9 130 . . 223 142 91 . 274 179 642 1651 Effects 25 | . . . . 3 . . . . 5 . 1 . . 3 . . . 3 . 4 . . . . . 3 . 3 Shutdowns 2 | . . . . . . . . . 1 . . . . . . . . . . . . . . . . . . 1 Energy Bleed 3 | . . . . . . . . . 1 . . . . . . . . . . 1 . . . . . . . 1 Interference 18 | . . . . 3 . . . . 3 . 1 . . 2 . . . 3 . 3 . . . . . 3 . . Matter Decay 1 | . . . . . . . . . . . . . . . . . . . . . . . . . . . . 1 Damage (minor) 1 | . . . . . . . . . . . . . . 1 . . . . . . . . . . . . . . Siege Activations 9 | . . . . . . . . . . . . . . . . . . . . . . . . . . . . 9 Total Turns 206 | . . . . . . . . . . . . . . . . . . . . . . . . . . . . 206 Longest Duration 65 | . . . . . . . . . . . . . . . . . . . . . . . . . . . . 65 Martial Activations . | . . . . . . . . . . . . . . . . . . . . . . . . . . . . . Shielding Activations . | . . . . . . . . . . . . . . . . . . . . . . . . . . . . . Robots Disrupted . | . . . . . . . . . . . . . . . . . . . . . . . . . . . . . Combat Hostiles . | . . . . . . . . . . . . . . . . . . . . . . . . . . . . . Robots Corrupted 11 | . . . . . 1 . . 2 . . . . 1 1 1 . . . . . . 1 2 . . . 2 . Combat Hostiles 10 | . . . . . 1 . . 1 . . . . 1 1 1 . . . . . . 1 2 . . . 2 . Parts Fried 41 | . . . . . . . . 3 . . . . . 4 8 1 . 5 . . . 9 5 . . 1 5 . Impact Corruptions 10 | . . . . . . . . 7 . . . . 2 1 . . . . . . . . . . . . . . Robots Melted 9 | . . . . . . 1 . 7 . . . . . . . . . . . . 1 . . . . . . . Combat Hostiles 9 | . . . . . . 1 . 7 . . . . . . . . . . . . 1 . . . . . . . Parts Melted 43 | . . . . 2 1 2 . 28 1 . . . . . 2 . . . . . 5 . . . . . . 2 Heat Transferred 15131 | . . . 185 1591 296 296 . 5143 1797 . . . 37 1005 . . 111 654 125 . 2100 50 . . 100 98 73 1470 Parts Sabotaged 9 | . . . . . . . . . . . . . . . 3 . . . . . 1 . . . . . . 5 Parts Stolen . | . . . . . . . . . . . . . . . . . . . . . . . . . . . . . Parts Stripped . | . . . . . . . . . . . . . . . . . . . . . . . . . . . . . Power Chain Reactions 10 | . . . . . . . . . 1 . . . . 1 . . . 1 . . . 1 . . 1 1 2 2 Alert | -11 -10 -10 -9 -7 -7 -7 -7 -6 -6 -6 -6 -6 -5 -5 -5 -5 -5 -5 -4 -4 -4 -4 -4 -4 -3 -3 -3 -3 ------- Run | Yrd Mat Sub Rec Fac Low Low Zio Pro Fac Low Low Dat Pro Fac Ext Cet Arc Hub Fac Was Fac Upp Upp War Pro Res Qua Sec Maximum Alert Level 5 | . . . . 2 . . . . . . . . . 3 3 2 1 4 3 1 2 . . . . . 1 5 Low Security (%) 40 | 100 100 . 100 . . . . . 100 . . . . 25 . . . 28 . 13 13 . . . . 100 42 1 Level 1 16 | . . . . 14 . . . . . . . . . 27 2 . 100 14 . 86 13 . . . . . 57 12 Level 2 30 | . . . . 85 . . . . . . . . . 42 69 100 . 35 69 . 72 . . . . . . 17 Level 3 9 | . . . . . . . . . . . . . . 4 27 . . 1 30 . . . . . . . . 37 Level 4 1 | . . . . . . . . . . . . . . . . . . 19 . . . . . . . . . 7 Level 5 . | . . . . . . . . . . . . . . . . . . . . . . . . . . . . . High Security . | . . . . . . . . . . . . . . . . . . . . . . . . . . . . . Max Security 2 | . . . . . . . . . . . . . . . . . . . . . . . . . . . . 22 Peak Influence 3490 | 10 91 . 71 675 . . . . 139 . . . . 862 982 628 379 1192 825 288 694 . . . . 70 390 3490 Initial 555 | . . . 38 402 . . . . 16 . . . . . 418 549 220 111 555 288 120 . . . . . 20 203 Average 399 | 1 44 . 11 558 . . . . 60 . . . . 394 611 571 336 542 662 238 455 . . . . 9 210 1093 Influence Increases 16129 | 10 324 240 219 948 135 315 . 450 611 270 220 . 230 1309 1517 293 179 1304 430 64 954 460 210 . 270 279 1059 3829 Destroy 0b10 Robot/C 8260 | . 200 160 20 200 120 240 . 320 300 180 220 . 180 580 900 220 80 320 . . 500 300 180 . 240 120 540 2140 Destroy 0b10 Robot/NC 400 | 10 10 . 35 20 5 10 . 10 55 . . . . 40 25 10 . 50 10 . 30 5 . . . 20 15 40 Destroy Leader 1358 | . 44 20 . 54 10 50 . 30 108 30 . . 20 114 114 10 . 82 . . 98 50 30 . 30 38 74 352 Allied During Kill 958 | . . . 6 . . . . . . . . . . 1 188 28 80 335 . . . . . . . . . 320 Successful Hack 223 | . 10 . 17 11 . . . . 30 . . . . 51 19 2 . . 14 . . . . . . . 69 . Select Force Hacks 210 | . 60 . 120 30 . . . . . . . . . . . . . . . . . . . . . . . . Disable Machine 1365 | . . . . 150 . . . . 45 . . . . 315 15 15 15 255 90 . 135 . . . . 15 90 225 Anti-Garrison Action 200 | . . . . . . . . . . . . . . . . . . . 200 . . . . . . . . . Destroy Structure 1225 | . . . 21 83 . . . . 13 . . . . 208 76 8 4 262 86 64 116 . . . . 56 106 122 Advance Influence 400 | . . . . 400 . . . . . . . . . . . . . . . . . . . . . . . . Partial Spotted 15 | . . . . . . . . . . . . . . . . . . . . . . . . . . . 15 . Lose Combat Pursuer 1515 | . . 60 . . . 15 . 90 60 60 . . 30 . 180 . . . 30 . 75 105 . . . 30 150 630 Influence Decreases 13019 | 10 314 170 293 330 470 401 203 423 532 374 222 . 230 454 1390 723 412 489 739 717 492 660 481 163 270 243 733 1081 Entered New Map 3830 | . . 6 42 4 232 55 203 . 11 40 2 . . . 437 433 332 208 579 537 52 236 83 163 . . 16 159 Time Decay 7628 | 10 284 144 229 286 198 326 . 333 481 334 220 . 230 444 583 270 80 80 160 180 440 374 398 . 260 219 543 522 Lost Part 774 | . 20 20 . 10 40 20 . 70 40 . . . . 10 10 . . 20 . . . 50 . . 10 24 30 400 Lost Ally 542 | . 10 . 22 30 . . . 20 . . . . . . 360 20 . 80 . . . . . . . . . . Purge Threat 245 | . . . . . . . . . . . . . . . . . . 101 . . . . . . . . 144 . Squads Dispatched 85 | . 2 . . 4 . . . 1 4 . . . . 6 6 1 . 6 4 . 5 . . . . 5 6 35 Investigation 11 | . 2 . . 1 . . . . . . . . . 1 . 1 . 1 1 . 1 . . . . 3 . . Extermination 17 | . . . . 2 . . . . 3 . . . . 2 . . . . . . 2 . . . . . 4 4 Reinforcement 19 | . . . . . . . . . 1 . . . . 3 2 . . 3 1 . 1 . . . . 2 2 4 Assault 35 | . . . . 1 . . . 1 . . . . . . 4 . . . 2 . 1 . . . . . . 26 Garrison 2 | . . . . . . . . . . . . . . . . . . 2 . . . . . . . . . . Intercept 1 | . . . . . . . . . . . . . . . . . . . . . . . . . . . . 1 Searches Triggered . | . . . . . . . . . . . . . . . . . . . . . . . . . . . . . Data Miner Redirects 4 | . . . . . . . . . . . . . . . . . . . . . . . . . . . . 4 Construction Impeded 1 | . . . . . . . . . . . . . . . . . . 1 . . . . . . . . . . Haulers Reinforced 4 | . . . . . . . . . . . . . . 2 . . . . . . 1 . . . . 1 . . Active Scanning Responses . | . . . . . . . . . . . . . . . . . . . . . . . . . . . . . Cargo Convoy Interrupts . | . . . . . . . . . . . . . . . . . . . . . . . . . . . . . Stealth | -11 -10 -10 -9 -7 -7 -7 -7 -6 -6 -6 -6 -6 -5 -5 -5 -5 -5 -5 -4 -4 -4 -4 -4 -4 -3 -3 -3 -3 --------- Run | Yrd Mat Sub Rec Fac Low Low Zio Pro Fac Low Low Dat Pro Fac Ext Cet Arc Hub Fac Was Fac Upp Upp War Pro Res Qua Sec Distress Signals 17 | . . . . 1 . . . . . . . . . . 1 2 . . 1 . 2 . . . . 3 . 7 Communications Jammed . | . . . . . . . . . . . . . . . . . . . . . . . . . . . . . Distress Signals . | . . . . . . . . . . . . . . . . . . . . . . . . . . . . . Times Spotted 662 | . 11 27 3 12 5 15 . 23 24 12 12 . 11 39 61 12 3 24 6 6 44 20 9 . 12 33 41 197 Peak Tracking Total 34 | . 3 6 2 4 4 4 . 5 4 4 4 . 5 6 13 5 2 10 3 5 6 5 3 . 4 8 5 34 Tactical Retreats 54 | . . 2 . . . 1 . 6 4 1 . . 1 . 10 . . . 1 . 3 5 . . . 1 7 12 Traps | -11 -10 -10 -9 -7 -7 -7 -7 -6 -6 -6 -6 -6 -5 -5 -5 -5 -5 -5 -4 -4 -4 -4 -4 -4 -3 -3 -3 -3 ------- Run | Yrd Mat Sub Rec Fac Low Low Zio Pro Fac Low Low Dat Pro Fac Ext Cet Arc Hub Fac Was Fac Upp Upp War Pro Res Qua Sec Traps Triggered 15 | . . 1 . . . . . . 2 . . . . 2 1 . . . 2 . 1 . . 2 . 2 2 . Indirectly . | . . . . . . . . . . . . . . . . . . . . . . . . . . . . . Trap Hack Attempts . | . . . . . . . . . . . . . . . . . . . . . . . . . . . . . Triggered . | . . . . . . . . . . . . . . . . . . . . . . . . . . . . . Disarmed . | . . . . . . . . . . . . . . . . . . . . . . . . . . . . . Reprogrammed 1 | . . . . . . . . . . . . . . . . . . . . . . . . . . . 1 . Reused . | . . . . . . . . . . . . . . . . . . . . . . . . . . . . . Traps Extracted . | . . . . . . . . . . . . . . . . . . . . . . . . . . . . . Installed . | . . . . . . . . . . . . . . . . . . . . . . . . . . . . . Triggered . | . . . . . . . . . . . . . . . . . . . . . . . . . . . . . Machines | -11 -10 -10 -9 -7 -7 -7 -7 -6 -6 -6 -6 -6 -5 -5 -5 -5 -5 -5 -4 -4 -4 -4 -4 -4 -3 -3 -3 -3 ---------- Run | Yrd Mat Sub Rec Fac Low Low Zio Pro Fac Low Low Dat Pro Fac Ext Cet Arc Hub Fac Was Fac Upp Upp War Pro Res Qua Sec Machines Disabled 103 | . . . . 10 . . . . 3 . . . . 21 2 1 1 17 6 . 9 . . . . 1 6 26 Max in Single Turn 14 | . . . . 2 . . . . 1 . . . . 6 1 1 . 14 5 . 5 . . . . 1 1 1 Garrison Access 5 | . . . . . . . . . 1 . . . . 1 . . . . 1 . . . . . . 1 1 . Network Hub 1 | . . . . . . . . . . . . . . . . . . 1 . . . . . . . . . . Energy Cycler 1 | . . . . . . . . . . . . . . . 1 . . . . . . . . . . . . . Machines Repaired . | . . . . . . . . . . . . . . . . . . . . . . . . . . . . . Machines Dismantled . | . . . . . . . . . . . . . . . . . . . . . . . . . . . . . Machines Sabotaged . | . . . . . . . . . . . . . . . . . . . . . . . . . . . . . Overloaded Fab Kills . | . . . . . . . . . . . . . . . . . . . . . . . . . . . . . Hacking | -11 -10 -10 -9 -7 -7 -7 -7 -6 -6 -6 -6 -6 -5 -5 -5 -5 -5 -5 -4 -4 -4 -4 -4 -4 -3 -3 -3 -3 --------- Run | Yrd Mat Sub Rec Fac Low Low Zio Pro Fac Low Low Dat Pro Fac Ext Cet Arc Hub Fac Was Fac Upp Upp War Pro Res Qua Sec Machines Accessed 78 | . 6 1 11 6 . . . . 8 1 2 4 . 2 5 3 . 2 6 . 1 . . . . 2 15 3 Terminals 42 | . 3 . 3 4 . . . . 4 . . . . 1 4 3 . 2 2 . 1 . . . . . 12 3 Fabricators 3 | . . . . . . . . . 1 . . . . . . . . . 2 . . . . . . . . . Repair Stations 2 | . 1 . . . . . . . . . . . . . . . . . . . . . . . . . 1 . Recycling Units 15 | . 2 . 7 1 . . . . 2 . . . . . 1 . . . 1 . . . . . . 1 . . Scanalyzers 2 | . . . . 1 . . . . . . . . . . . . . . . . . . . . . . 1 . Garrison Access 5 | . . . . . . . . . 1 . . . . 1 . . . . 1 . . . . . . 1 1 . Total Hacks 224 | . 13 5 36 23 . . . . 13 1 2 29 . 3 9 6 . 5 19 . 2 . . . . 4 50 4 Successful 118 | . 9 5 20 10 . . . . 6 1 2 29 . 3 4 2 . 1 4 . . . . . . 1 18 3 Failed 105 | . 4 . 16 12 . . . . 7 . . . . . 5 4 . 4 15 . 2 . . . . 3 32 1 Catastrophic 22 | . . . 3 . . . . . 2 . . . . . 2 1 . 1 5 . . . . . . 1 7 . Database Lockouts 1 | . . . . 1 . . . . . . . . . . . . . . . . . . . . . . . . Manual 62 | . 9 . 8 13 . . . . 6 . . . . 1 6 1 . . 6 . 2 . . . . . 10 . Terminals 110 | . 7 . 8 18 . . . . 8 . . . . 2 8 6 . 5 7 . 2 . . . . . 35 4 Fabricators 7 | . . . . . . . . . 1 . . . . . . . . . 6 . . . . . . . . . Repair Stations 5 | . 4 . . . . . . . . . . . . . . . . . . . . . . . . . 1 . Recycling Units 40 | . 2 . 26 3 . . . . 3 . . . . . 1 . . . 2 . . . . . . 3 . . Scanalyzers 13 | . . . . 2 . . . . . . . . . . . . . . . . . . . . . . 11 . Garrison Access 10 | . . . . . . . . . 1 . . . . 1 . . . . 4 . . . . . . 1 3 . Terminal Hacks 67 | . 1 5 5 2 . . . . 2 1 2 29 . 1 1 2 . 1 1 . . . . . . . 11 3 Record 21 | . . 5 . . . . . . . . . 11 . . . 2 . . . . . . . . . . 3 . Part Schematic 14 | . 1 . 3 2 . . . . . . . 8 . . . . . . . . . . . . . . . . Robot Schematic 7 | . . . . . . . . . . . . 7 . . . . . . . . . . . . . . . . Robot Analysis 1 | . . . . . . . . . . . . . . 1 . . . . . . . . . . . . . . Prototype ID Bank 4 | . . . . . . . . . 1 . . 3 . . . . . . . . . . . . . . . . Open Door 6 | . . . . . . . . . . 1 2 . . . . . . . . . . . . . . . 1 2 Branch Access Points 2 | . . . . . . . . . . . . . . . . . . . 1 . . . . . . . 1 . Emergency Access Points 1 | . . . . . . . . . . . . . . . . . . . . . . . . . . . 1 . Alert Level 1 | . . . . . . . . . 1 . . . . . . . . . . . . . . . . . . . Unreport Threat 2 | . . . . . . . . . . . . . . . . . . 1 . . . . . . . . 1 . Locate Traps 1 | . . . . . . . . . . . . . . . . . . . . . . . . . . . 1 . Reprogram Traps 1 | . . . . . . . . . . . . . . . . . . . . . . . . . . . 1 . Hauler Manifests 1 | . . . . . . . . . . . . . . . . . . . . . . . . . . . 1 . Zone Layout 2 | . . . . . . . . . . . . . . . 1 . . . . . . . . . . . 1 . Activate Exoskeleton 1 | . . . . . . . . . . . . . . . . . . . . . . . . . . . . 1 Release Object 2 | . . . 2 . . . . . . . . . . . . . . . . . . . . . . . . . Fabricator Hacks . | . . . . . . . . . . . . . . . . . . . . . . . . . . . . . Repair Station Hacks 2 | . 2 . . . . . . . . . . . . . . . . . . . . . . . . . . . Scan Component 1 | . 1 . . . . . . . . . . . . . . . . . . . . . . . . . . . Repair 1 | . 1 . . . . . . . . . . . . . . . . . . . . . . . . . . . Recycling Unit Hacks 13 | . . . 10 1 . . . . . . . . . . 1 . . . 1 . . . . . . . . . Report Inventory 8 | . . . 6 1 . . . . . . . . . . . . . . 1 . . . . . . . . . Retrieve Components 5 | . . . 4 . . . . . . . . . . . 1 . . . . . . . . . . . . . Scanalyzer 4 | . . . . 1 . . . . . . . . . . . . . . . . . . . . . . 3 . Insert Component 2 | . . . . . . . . . . . . . . . . . . . . . . . . . . . 2 . Retrieve Study 2 | . . . . 1 . . . . . . . . . . . . . . . . . . . . . . 1 . Garrison Access Hacks 4 | . . . . . . . . . 1 . . . . 1 . . . . . . . . . . . 1 1 . Seal Access 4 | . . . . . . . . . 1 . . . . 1 . . . . . . . . . . . 1 1 . Unauthorized Hacks 28 | . 6 . 5 6 . . . . 3 . . . . 1 2 . . . 2 . . . . . . . 3 . Terminals 19 | . 4 . 1 5 . . . . 2 . . . . 1 2 . . . 1 . . . . . . . 3 . Track 1 | . . . . 1 . . . . . . . . . . . . . . . . . . . . . . . . Assimilate 1 | . 1 . . . . . . . . . . . . . . . . . . . . . . . . . . . Botnet 13 | . 2 . 1 2 . . . . 2 . . . . 1 2 . . . 1 . . . . . . . 2 . Operators 1 | . . . . 1 . . . . . . . . . . . . . . . . . . . . . . . . Skim 3 | . 1 . . 1 . . . . . . . . . . . . . . . . . . . . . . 1 . Fabricators 1 | . . . . . . . . . 1 . . . . . . . . . . . . . . . . . . . Fabnet 1 | . . . . . . . . . 1 . . . . . . . . . . . . . . . . . . . Repair Stations . | . . . . . . . . . . . . . . . . . . . . . . . . . . . . . Recycling Units 7 | . 2 . 4 1 . . . . . . . . . . . . . . . . . . . . . . . . Tunnel 7 | . 2 . 4 1 . . . . . . . . . . . . . . . . . . . . . . . . Scanalyzers . | . . . . . . . . . . . . . . . . . . . . . . . . . . . . . Garrison Access 1 | . . . . . . . . . . . . . . . . . . . 1 . . . . . . . . . Jam 1 | . . . . . . . . . . . . . . . . . . . 1 . . . . . . . . . Data Cores Recovered 2 | . . . . 1 . . . . . . . . . . . . . . 1 . . . . . . . . . Used 1 | . . . . . . . . . . . . . . . . . . . 1 . . . . . . . . . Hacking Detections 53 | . 4 . 7 5 . . . . 6 . . . . 1 4 3 . 2 6 . 1 . . . . 1 11 2 Full Trace Events 6 | . . . 4 . . . . . . . . . . . . 1 . 1 . . . . . . . . . . Feedback Events . | . . . . . . . . . . . . . . . . . . . . . . . . . . . . . Feedback Blocked . | . . . . . . . . . . . . . . . . . . . . . . . . . . . . . Robot Schematics Acquired 7 | . . . . . . . . . . . . 7 . . . . . . . . . . . . . . . . Robots Built . | . . . . . . . . . . . . . . . . . . . . . . . . . . . . . Authchips . | . . . . . . . . . . . . . . . . . . . . . . . . . . . . . Time . | . . . . . . . . . . . . . . . . . . . . . . . . . . . . . Total Robot Build Rating . | . . . . . . . . . . . . . . . . . . . . . . . . . . . . . Part Schematics Acquired 15 | . 1 . 2 2 . . . . . . . 8 . . . . . . . . . . . . . . . 2 Parts Built . | . . . . . . . . . . . . . . . . . . . . . . . . . . . . . Authchips . | . . . . . . . . . . . . . . . . . . . . . . . . . . . . . Time . | . . . . . . . . . . . . . . . . . . . . . . . . . . . . . Total Part Build Rating . | . . . . . . . . . . . . . . . . . . . . . . . . . . . . . Part Studies Acquired 2 | . . . . 1 . . . . . . . . . . . . . . . . . . . . . . 1 . Parts Repaired 1 | . 1 . . . . . . . . . . . . . . . . . . . . . . . . . . . Time 26 | . 26 . . . . . . . . . . . . . . . . . . . . . . . . . . . Parts Recycled . | . . . . . . . . . . . . . . . . . . . . . . . . . . . . . Recycled Matter . | . . . . . . . . . . . . . . . . . . . . . . . . . . . . . Retrieved Matter . | . . . . . . . . . . . . . . . . . . . . . . . . . . . . . Retrieved Components 13 | . . . 12 . . . . . . . . . . . 1 . . . . . . . . . . . . . Parts Scanalyzed 1 | . . . . . . . . . . . . . . . . . . . . . . . . . . . 1 . Part Schematics Acquired . | . . . . . . . . . . . . . . . . . . . . . . . . . . . . . Parts Damaged 1 | . . . . . . . . . . . . . . . . . . . . . . . . . . . 1 . Bothacking | -11 -10 -10 -9 -7 -7 -7 -7 -6 -6 -6 -6 -6 -5 -5 -5 -5 -5 -5 -4 -4 -4 -4 -4 -4 -3 -3 -3 -3 ------------ Run | Yrd Mat Sub Rec Fac Low Low Zio Pro Fac Low Low Dat Pro Fac Ext Cet Arc Hub Fac Was Fac Upp Upp War Pro Res Qua Sec Used RIF Installer . | . . . . . . . . . . . . . . . . . . . . . . . . . . . . . Robots Hacked 4 | . . . . . . . . . . . . . . 1 1 1 1 . . . . . . . . . . . Non-combat . | . . . . . . . . . . . . . . . . . . . . . . . . . . . . . Combat 4 | . . . . . . . . . . . . . . 1 1 1 1 . . . . . . . . . . . Robot Hacks Applied . | . . . . . . . . . . . . . . . . . . . . . . . . . . . . . Relay Couplers Released . | . . . . . . . . . . . . . . . . . . . . . . . . . . . . . Fabnet Peak Effective % 3 | . . . . . . . . . . . . . 3 3 3 3 3 3 1 1 1 1 1 1 . . . . Autooverrided 4 | . . . . . . . . . . . . . . 1 1 1 1 . . . . . . . . . . . Robots Rewired 22 | . . . 9 . . . . 1 . . . . . . 12 . . . . . . . . . . . . . Allies Hacked . | . . . . . . . . . . . . . . . . . . . . . . . . . . . . . Hacks Repelled . | . . . . . . . . . . . . . . . . . . . . . . . . . . . . . Allies | -11 -10 -10 -9 -7 -7 -7 -7 -6 -6 -6 -6 -6 -5 -5 -5 -5 -5 -5 -4 -4 -4 -4 -4 -4 -3 -3 -3 -3 -------- Run | Yrd Mat Sub Rec Fac Low Low Zio Pro Fac Low Low Dat Pro Fac Ext Cet Arc Hub Fac Was Fac Upp Upp War Pro Res Qua Sec Total Allies 40 | . 1 . 9 . . . . 1 . . . . . 1 20 6 1 . . . . . . . . . . 1 Largest Group 9 | . 1 . 9 6 . . . 1 . . . . . 1 5 6 6 5 . . . . . . . . . 1 Highest-Rated Group 1204 | . 10 . 129 91 . . . 20 . . . . . 29 246 639 639 480 . . . . . . . . . 1204 Highest-Rated Ally 1204 | . 10 . 34 34 . . . 20 . . . . . 29 159 159 159 96 . . . . . . . . . 1204 Total Orders 2 | . . . 2 . . . . . . . . . . . . . . . . . . . . . . . . . STAY 1 | . . . 1 . . . . . . . . . . . . . . . . . . . . . . . . . FOLLOW 1 | . . . 1 . . . . . . . . . . . . . . . . . . . . . . . . . Ally Attacks 332 | . . . 12 1 . . . . . . . . . 8 114 29 15 49 . . . . . . . . . 104 Total Damage 19284 | . . . 256 142 . . . . . . . . . 133 3021 745 498 2177 . . . . . . . . . 12312 Kills 98 | . . . 3 3 . . . . . . . . . 1 23 5 2 14 . . . . . . . . . 47 Allies Corrupted 3 | . . . . 1 . . . . . . . . . . . . . 2 . . . . . . . . . . Allies Melted 2 | . . . . . . . . . . . . . . . 1 . . 1 . . . . . . . . . . Intel | -11 -10 -10 -9 -7 -7 -7 -7 -6 -6 -6 -6 -6 -5 -5 -5 -5 -5 -5 -4 -4 -4 -4 -4 -4 -3 -3 -3 -3 ------- Run | Yrd Mat Sub Rec Fac Low Low Zio Pro Fac Low Low Dat Pro Fac Ext Cet Arc Hub Fac Was Fac Upp Upp War Pro Res Qua Sec Active Infowar (turns) 3803 | 15 759 4 . . . . . . . . . . . . . . . . 324 19 1065 139 . . . . 701 777 Sensors 1695 | . . . . . . . . . . . . . . . . . . . 217 . . . . . . . 701 777 Terrain 1330 | . . . . . . . . . . . . . . . . . . . 107 19 1065 139 . . . . . . Seismic 778 | 15 759 4 . . . . . . . . . . . . . . . . . . . . . . . . . . Robot Analysis Total 1 | . . . . . . . . . . . . . . 1 . . . . . . . . . . . . . . Derelict Logs Recovered 15 | . . 1 . . . 2 . 1 . 3 3 . 2 . . . . . . . . 1 2 . . . . . Drone Launches . | . . . . . . . . . . . . . . . . . . . . . . . . . . . . . Drone Recoveries . | . . . . . . . . . . . . . . . . . . . . . . . . . . . . . Exploration | -11 -10 -10 -9 -7 -7 -7 -7 -6 -6 -6 -6 -6 -5 -5 -5 -5 -5 -5 -4 -4 -4 -4 -4 -4 -3 -3 -3 -3 ------------- Run | Yrd Mat Sub Rec Fac Low Low Zio Pro Fac Low Low Dat Pro Fac Ext Cet Arc Hub Fac Was Fac Upp Upp War Pro Res Qua Sec Turns Passed 25622 | 95 759 2416 1085 627 414 736 160 1223 1530 756 1041 88 778 1608 1809 599 179 188 329 371 1086 864 959 153 1245 1097 1565 1862 Spaces Moved 18267 | 45 360 1297 578 536 583 701 151 915 1034 595 886 81 665 1368 890 457 168 107 350 338 646 601 639 109 717 878 1495 1077 Core 113 | 3 . 75 35 . . . . . . . . . . . . . . . . . . . . . . . . . Treads 8981 | 42 360 1035 360 9 . . . 218 307 595 886 81 665 223 441 64 4 . . . 81 119 619 109 717 777 630 639 Legs 2638 | . . . . 179 . 259 . . 342 . . . . . . . 164 107 350 338 312 5 . . . 88 494 . Wheels 841 | . . 187 183 141 . . . . . . . . . 228 . . . . . . . . . . . . 102 . Hover 1078 | . . . . 2 . . . . . . . . . 298 132 393 . . . . 253 . . . . . . . Flight 4616 | . . . . 205 583 442 151 697 385 . . . . 619 317 . . . . . . 477 20 . . 13 269 438 Fastest Speed 46 | 50 160 110 95 82 50 65 103 83 83 109 109 109 109 66 102 102 95 95 77 77 59 56 113 141 141 46 46 64 Average Speed 112 | 152 160 171 162 90 59 90 103 109 108 111 109 109 109 96 151 108 95 95 82 77 129 118 140 141 149 103 76 84 Slowest Speed 500 | 160 160 500 500 112 97 103 103 157 128 124 109 109 109 124 190 173 102 95 95 77 250 250 141 141 156 173 146 148 Overloaded Moves . | . . . . . . . . . . . . . . . . . . . . . . . . . . . . . Propulsion Burnouts . | . . . . . . . . . . . . . . . . . . . . . . . . . . . . . Robots Hopped 9 | . . . . 1 . . . . . . . . . 5 . . . . . . . . . . . . . 3 Potential Cave-ins 8 | . . . . . . . . . . . . . . . . . . . . . . . . . . 2 . 6 Cave-ins Triggered . | . . . . . . . . . . . . . . . . . . . . . . . . . . . . . Exploration Rate (%) 55 | 4 54 74 64 19 65 71 10 89 21 67 94 69 77 39 88 89 89 16 12 85 13 70 75 18 79 21 96 51 Regions Visited 28 Branch Regions 20 Pre-discovered Areas 14 | . 2 1 4 1 . . . 1 . 1 . 1 1 . . . . . . . . 1 1 . . . . . Known Exits Taken 9 | . . . . 1 . . . 1 . . 1 . 1 1 . . . 1 . . 1 . . . . 1 1 . Unknown Exits Taken 17 | 1 1 1 1 . 1 1 1 . 1 1 . 1 . . 1 1 1 . . . . 1 1 1 1 . . . Scrap Searched 24 | . . 3 . . . 2 . 1 . 8 2 . 3 . . . . . . . . 4 1 . . . . . Spaces Dug 62 | . . . . 6 . . . 1 1 . . . . 3 . . . . 7 . 9 . . . . 11 7 17 Terrain Destroyed 922 | . . . 33 57 3 5 . 1 14 10 17 . 24 139 26 4 1 154 74 48 88 14 2 . 20 29 56 103 Melee 2 | . . . . . . . . 1 1 . . . . . . . . . . . . . . . . . . . Projectile 419 | . . . . 10 3 5 . . 1 10 17 . 24 41 26 4 1 11 13 48 22 11 2 . 9 23 35 103 AOE 501 | . . . 33 47 . . . . 12 . . . . 98 . . . 143 61 . 66 3 . . 11 6 21 . Terrain Rammed . | . . . . . . . . . . . . . . . . . . . . . . . . . . . . . Walls Destroyed . | . . . . . . . . . . . . . . . . . . . . . . . . . . . . . Machines Disabled . | . . . . . . . . . . . . . . . . . . . . . . . . . . . . . Actions | -11 -10 -10 -9 -7 -7 -7 -7 -6 -6 -6 -6 -6 -5 -5 -5 -5 -5 -5 -4 -4 -4 -4 -4 -4 -3 -3 -3 -3 --------- Run | Yrd Mat Sub Rec Fac Low Low Zio Pro Fac Low Low Dat Pro Fac Ext Cet Arc Hub Fac Was Fac Upp Upp War Pro Res Qua Sec Total 21838 | 60 465 1407 699 616 619 747 155 1028 1291 648 929 80 685 1581 1313 541 183 160 379 422 830 717 686 108 856 1024 1833 1776 Wait 1366 | . 50 5 11 23 5 16 5 13 62 21 15 . 4 87 149 61 11 20 1 22 94 73 29 . 100 58 138 293 Move 18223 | 44 359 1296 577 533 582 700 150 914 1033 594 885 80 664 1358 889 456 167 106 350 337 645 600 638 108 716 877 1494 1071 Hop 8 | . . . . 1 . . . . . . . . . 4 . . . . . . . . . . . . . 3 Pick Up 125 | 4 4 3 3 4 1 1 . 1 26 6 2 . . 11 6 . 1 . 6 1 6 1 . . 1 17 11 9 Fast Attach 102 | 7 3 4 8 3 1 . . 5 5 . . . . 1 3 2 . . 6 . 3 2 1 . . 6 11 31 Attach 50 | . . 1 . 2 . . . 1 3 . . . . 5 . . . . 1 . 2 4 . . 1 1 6 23 Detach 62 | . . 1 2 5 1 . . 1 3 1 . . . 3 1 . . . 2 . 2 1 1 . . 6 8 24 Swap 56 | . . 9 3 2 1 . . 5 3 1 2 . . 7 3 1 . . . 2 2 . 1 . 2 1 3 8 Drop 152 | . 1 15 12 7 4 . . 3 19 5 2 . . 12 5 2 . . 3 4 6 2 . . 3 10 24 13 Fire 1283 | 5 48 59 18 36 24 30 . 44 62 20 23 . 17 78 61 19 4 33 10 56 70 34 16 . 32 48 138 298 Melee 79 | . . . . . . . . 34 45 . . . . . . . . . . . . . . . . . . . Ram . | . . . . . . . . . . . . . . . . . . . . . . . . . . . . . Kick 1 | . . . . . . . . . . . . . . . . . . 1 . . . . . . . . . . Crush 1 | . . . . . . . . . . . . . . . . . . . . . . . . . 1 . . . Escape Stasis 61 | . . . . . . . . . 30 . . . . 15 13 . . . . . . . . . . . . 3 Rewire 255 | . . . 65 . . . . 7 . . . . . . 183 . . . . . . . . . . . . . Trap . | . . . . . . . . . . . . . . . . . . . . . . . . . . . . . Miscellaneous 14 | . . 14 . . . . . . . . . . . . . . . . . . . . . . . . . . Route ------- -11/Scrapyard -10/Materials (discovered 2 exits: [*Min] / *Sub) -10/Subcaves (discovered 3 exits: [*Mat] / *Rec / [*Scr]) -9/Recycling -7/Factory (discovered 6 exits: *Fac x4 / *Low x2) -7/Lower Caves -7/Lower Caves (discovered 2 exits: *Fac / [*Zio]) -7/Zion -6/Proximity Caves -6/Factory (discovered 2 exits: *Fac / *Low) -6/Lower Caves -6/Lower Caves (discovered 2 exits: *Fac / *Dat) -6/Data Miner -5/Proximity Caves -5/Factory (discovered 4 exits: *Fac x2 / *Upp / *Ext) -5/Extension (discovered 3 exits: *Fac x2 / *Cet) -5/Cetus (discovered 3 exits: *Fac x2 / *Arc) -5/Archives (discovered 3 exits: *Fac / *Hub x2) -5/Hub_04(d) -4/Factory (discovered 2 exits: Upp x2) -4/Waste -4/Factory -4/Upper Caves -4/Upper Caves (discovered 2 exits: *Res / [*War]) -4/Warlord -3/Proximity Caves -3/Research (discovered 2 exits: *Res / *Qua) -3/Quarantine (discovered 3 exits: *Res / *Sec / *Frg) -3/Section 7 (discovered 1 exit: *Res) History --------- Turn | Location | Event 32 | -11/Scrapyard | Discovered new exit (range 15) 96 | -11/Scrapyard | Entered Materials 307 | -10/Materials | Build established: Mutant 543 | -10/Materials | Core integrity fell below 50% 657 | -10/Materials | Repaired Lgt. Assault Rifle 684 | -10/Materials | Discovered new exit (range 12) 716 | -10/Materials | Discovered new exit (range 11) 855 | -10/Materials | Entered Subcaves 856 | -10/Subcaves | Approached by a straggling Scientist 876 | -10/Subcaves | Shifting Twisted Machinery released Flamer 934 | -10/Subcaves | Shifting Twisted Machinery released Sub. Machine Gun 957 | -10/Subcaves | Ambushed by swarm of Subdwellers 1309 | -10/Subcaves | Build established: Subdweller-Mutant 1631 | -10/Subcaves | Ambushed by Subdwellers from Twisted Machinery 1646 | -10/Subcaves | Scientist uncovered a shortcut to Scraptown 1806 | -10/Subcaves | Ambushed by Subdwellers from Twisted Machinery 1868 | -10/Subcaves | Learned location of Zion (-7) 1868 | -10/Subcaves | Met a Zionite searching for "candidates" 2242 | -10/Subcaves | Build established: Mutant 2276 | -10/Subcaves | Visited Clippyterm 2281 | -10/Subcaves | Learned 40 Factory zone layouts 2281 | -10/Subcaves | Learned Factory emergency access door positions 2618 | -10/Subcaves | Ambushed by Subdwellers from Twisted Machinery 2621 | -10/Subcaves | Ambushed by Subdweller buried in earth 2642 | -10/Subcaves | Core integrity fell below 20% 2721 | -10/Subcaves | Learned Materials terminal intel 2797 | -10/Subcaves | Shifting Twisted Machinery released Scrap Shield 2810 | -10/Subcaves | Discovered new exit (range 5) 2877 | -10/Subcaves | Discovered new exit (range 13) 3271 | -10/Subcaves | Entered Recycling 3847 | -9/Recycling | Scanned before Scraplab entrance 3910 | -9/Recycling | Angered Scraplab inhabitants 3926 | -9/Recycling | Build established: Commander-Mutant 4069 | -9/Recycling | Found Prototype Device 4069 | -9/Recycling | Identified Scrap Engine 4328 | -9/Recycling | Discovered new exit (range 14) 4356 | -9/Recycling | Entered Factory 4356 | -7/Factory | Accompanied by 6 allies 4356 | -7/Factory | Evolved 6 slots: Power x1, Propulsion x2, Utility x2, Weapon x1 4357 | -7/Factory | Identified exit to Factory 4357 | -7/Factory | Identified exit to Lower Caves 4495 | -7/Factory | Lost 3 allies 4591 | -7/Factory | Central database locked down 4756 | -7/Factory | First assault squad dispatched 4814 | -7/Factory | Build established: Construct 4935 | -7/Factory | Discovered exit to Factory (range 15) 4983 | -7/Factory | Entered Lower Caves 4985 | -7/Lower Caves | Attracted the attention of an 0b10 checkpoint 5037 | -7/Lower Caves | Lost 4 parts (1p3w) 5366 | -7/Lower Caves | Discovered new exit (range 14) 5397 | -7/Lower Caves | Entered another Lower Caves area 5512 | -7/Lower Caves | Discovered exit to Factory (range 4) 5673 | -7/Lower Caves | Encountered a Warlord checkpoint 5731 | -7/Lower Caves | Learned Factory interactive machine intel 5999 | -7/Lower Caves | Learned location of 1 exit from Factory 6120 | -7/Lower Caves | Discovered new exit (range 5) 6133 | -7/Lower Caves | Entered Zion 6179 | -7/Zion | System corruption cleaned by Quarantine Array 6205 | -7/Zion | Given A8's code to call for help 6225 | -7/Zion | Discovered new exit (range 16) 6293 | -7/Zion | Entered Proximity Caves 6297 | -6/Proximity Caves | Learned location of Extension (-5) 6551 | -6/Proximity Caves | Attracted the attention of an 0b10 outpost 6825 | -6/Proximity Caves | Core integrity fell below 50% 7121 | -6/Proximity Caves | Lost 3 parts (1p1u1w) 7272 | -6/Proximity Caves | Discovered exit to Factory (range 5) 7428 | -6/Proximity Caves | Spotted B-75 Beast 7516 | -6/Proximity Caves | Entered Factory 7516 | -6/Factory | Evolved 2 slots: Utility x1, Weapon x1 7517 | -6/Factory | Identified exit to Factory 7518 | -6/Factory | Loaded intel: 54 interactive machine locations 7612 | -6/Factory | Lost 3 parts (1u2w) 8095 | -6/Factory | Discovered new exit (range 10) 9046 | -6/Factory | Entered Lower Caves 9477 | -6/Lower Caves | Spotted B-75 Beast 9489 | -6/Lower Caves | Core integrity fell below 50% 9503 | -6/Lower Caves | Destroyed B-75 Beast 9530 | -6/Lower Caves | Encountered a Warlord checkpoint 9559 | -6/Lower Caves | Learned location of 1 exit from Factory 9642 | -6/Lower Caves | Discovered new exit (range 12) 9649 | -6/Lower Caves | Learned Factory garrison access intel 9802 | -6/Lower Caves | Entered another Lower Caves area 9843 | -6/Lower Caves | Discovered exit to Factory (range 10) 9896 | -6/Lower Caves | Identified exit to Data Miner 10014 | -6/Lower Caves | Attracted the attention of an 0b10 checkpoint 10522 | -6/Lower Caves | Learned Factory emergency access door positions 10843 | -6/Lower Caves | Entered Data Miner 10843 | -6/Data Miner | Discovered new exit (range 6) 10864 | -6/Data Miner | Met Data Miner 10885 | -6/Data Miner | Learned location of Section 7 (-3) 10885 | -6/Data Miner | Acquired the access code to Warlord's prototype stash 10905 | -6/Data Miner | Received God Mode back door access code from Data Miner 10931 | -6/Data Miner | Entered Proximity Caves 11283 | -5/Proximity Caves | Learned location of Armory (-3) 11298 | -5/Proximity Caves | Learned Factory terminal intel 11568 | -5/Proximity Caves | Discovered exit to Factory (range 6) 11709 | -5/Proximity Caves | Entered Factory 11709 | -5/Factory | Evolved 2 slots: Utility x2 11710 | -5/Factory | Identified exit to Factory 11712 | -5/Factory | Loaded intel: 27 terminal locations 11713 | -5/Factory | Loaded intel: 4 garrison access locations 11972 | -5/Factory | Local machine network offline 12394 | -5/Factory | Discovered new exit (range 7) 12402 | -5/Factory | Identified exit to Upper Caves 12969 | -5/Factory | Discovered exit to Factory (range 9) 13290 | -5/Factory | Discovered new exit (range 15) 13315 | -5/Factory | Identified exit to Extension 13317 | -5/Factory | Entered Extension 13580 | -5/Extension | Rescued a captive Derelict 13617 | -5/Extension | First assault squad dispatched 13676 | -5/Extension | Rescued a captive Derelict 13692 | -5/Extension | Rescued a captive Derelict 13693 | -5/Extension | Rescued a captive Derelict 13821 | -5/Extension | Lost 6 allies 13833 | -5/Extension | Discovered exit to Factory (range 3) 14266 | -5/Extension | Rescued a captive Derelict 14268 | -5/Extension | Rescued a captive Derelict 14427 | -5/Extension | Rescued a captive Derelict 14575 | -5/Extension | Lost 4 allies 14591 | -5/Extension | Energy Cycler disabled 14591 | -5/Extension | Rescued a captive Derelict 14595 | -5/Extension | Rescued a captive Derelict 14603 | -5/Extension | Rescued A7 14639 | -5/Extension | Lost 6 allies 14991 | -5/Extension | Discovered exit to Factory (range 10) 14992 | -5/Extension | Discovered new exit (range 6) 15126 | -5/Extension | Entered Cetus 15126 | -5/Cetus | Accompanied by 1 ally (A7) 15131 | -5/Cetus | Acquired a Cetus Manufacturing Module code from A7 15140 | -5/Cetus | Spotted Cetus Guard 15140 | -5/Cetus | Spotted Cetus Guard 15149 | -5/Cetus | Destroyed Cetus Guard 15149 | -5/Cetus | Spotted Cetus Guard 15158 | -5/Cetus | Allies destroyed Cetus Guard 15159 | -5/Cetus | Spotted Cetus Guard 15165 | -5/Cetus | Allies destroyed Cetus Guard 15171 | -5/Cetus | Destroyed Cetus Guard 15262 | -5/Cetus | Discovered exit to Factory (range 15) 15362 | -5/Cetus | Escorted A7 to Cetus Mainframe 15414 | -5/Cetus | Discovered new exit (range 15) 15435 | -5/Cetus | Spotted Cetus Guard 15435 | -5/Cetus | Spotted Cetus Guard 15438 | -5/Cetus | Spotted Cetus Guard 15438 | -5/Cetus | Spotted Cetus Guard 15446 | -5/Cetus | Destroyed Cetus Guard 15446 | -5/Cetus | Destroyed Cetus Guard 15454 | -5/Cetus | Destroyed Cetus Guard 15461 | -5/Cetus | Discovered exit to Factory (range 15) 15466 | -5/Cetus | Met Revision 17 15547 | -5/Cetus | Started Cetus Manufacturing Module 15572 | -5/Cetus | Manufactured an Enhanced Grunt 15597 | -5/Cetus | Manufactured an Enhanced Grunt 15622 | -5/Cetus | Manufactured an Enhanced Grunt 15647 | -5/Cetus | Manufactured an Enhanced Grunt 15672 | -5/Cetus | Manufactured an Enhanced Grunt 15725 | -5/Cetus | Entered Archives 15725 | -5/Archives | Accompanied by 6 allies (A7) 15730 | -5/Archives | Received a hacking code to weaken MAIN.C 15760 | -5/Archives | Discovered new exit (range 16) 15770 | -5/Archives | Unable to access archive contents 15780 | -5/Archives | Discovered exit to Factory (range 15) 15793 | -5/Archives | Discovered new exit (range 13) 15904 | -5/Archives | Entered Hub_04(d) 15904 | -5/Hub_04(d) | Accompanied by 5 allies 15944 | -5/Hub_04(d) | Build established: Commander-Construct 15985 | -5/Hub_04(d) | Garrison activated, responded to threat 16002 | -5/Hub_04(d) | Discovered exit to Factory (range 5) 16019 | -5/Hub_04(d) | Lost 3 allies 16055 | -5/Hub_04(d) | Network Hub disabled 16056 | -5/Hub_04(d) | System corruption reached 10% 16062 | -5/Hub_04(d) | Disrupted transfer network 16073 | -5/Hub_04(d) | Spotted Lightning 16073 | -5/Hub_04(d) | Spotted Lightning 16079 | -5/Hub_04(d) | Spotted Lightning 16079 | -5/Hub_04(d) | Spotted Lightning 16080 | -5/Hub_04(d) | Spotted Lightning 16081 | -5/Hub_04(d) | Spotted Lightning 16092 | -5/Hub_04(d) | Entered Factory 16092 | -4/Factory | Evolved 2 slots: Propulsion x1, Utility x1 16166 | -4/Factory | Identified exit to Upper Caves 16287 | -4/Factory | Build established: Construct 16342 | -4/Factory | First assault squad dispatched 16421 | -4/Factory | Sucked down chute 16421 | -4/Factory | Entered Waste 16429 | -4/Waste | Spotted C-40 Crusher 16465 | -4/Waste | Spotted C-40 Crusher 16477 | -4/Waste | Spotted C-40 Crusher 16483 | -4/Waste | Spotted C-40 Crusher 16483 | -4/Waste | Destroyed C-40 Crusher 16511 | -4/Waste | Destroyed C-40 Crusher 16512 | -4/Waste | Spotted C-40 Crusher 16564 | -4/Waste | Destroyed C-40 Crusher 16566 | -4/Waste | Destroyed C-40 Crusher 16570 | -4/Waste | Spotted C-40 Crusher 16606 | -4/Waste | Destroyed C-40 Crusher 16671 | -4/Waste | Destroyed C-40 Crusher 16777 | -4/Waste | Discovered new exit (range 16) 16792 | -4/Waste | Entered Factory 16833 | -4/Factory | Discovered exit to Upper Caves (range 5) 17542 | -4/Factory | First assault squad dispatched 17878 | -4/Factory | Entered Upper Caves 17980 | -4/Upper Caves | Spotted B-86 Titan 17991 | -4/Upper Caves | Destroyed B-86 Titan 18483 | -4/Upper Caves | Discovered new exit (range 7) 18609 | -4/Upper Caves | Attracted the attention of an 0b10 checkpoint 18742 | -4/Upper Caves | Entered another Upper Caves area 18759 | -4/Upper Caves | Discovered new exit (range 15) 18943 | -4/Upper Caves | Spotted B-86 Titan 18952 | -4/Upper Caves | Destroyed B-86 Titan 18956 | -4/Upper Caves | System corruption reached 10% 19116 | -4/Upper Caves | Learned Research emergency access door positions 19218 | -4/Upper Caves | Attracted the attention of an 0b10 checkpoint 19587 | -4/Upper Caves | Discovered new exit (range 14) 19701 | -4/Upper Caves | Entered Warlord 19749 | -4/Warlord | System corruption cleaned by Quarantine Array 19772 | -4/Warlord | Attacked by Warlord forces 19803 | -4/Warlord | Discovered new exit (range 15) 19854 | -4/Warlord | Entered Proximity Caves 20202 | -3/Proximity Caves | Attracted the attention of an 0b10 checkpoint 20980 | -3/Proximity Caves | Discovered new exit (range 4) 21099 | -3/Proximity Caves | Entered Research 21099 | -3/Research | Evolved 2 slots: Power x1, Propulsion x1 21299 | -3/Research | Revision forces began assault on 0b10 21396 | -3/Research | Met up with Revision 17++ 21420 | -3/Research | System corruption reached 10% 21608 | -3/Research | Discovered new exit (range 16) 21609 | -3/Research | Lost 3 allies 21778 | -3/Research | Discovered new exit (range 4) 21785 | -3/Research | Lost 3 allies 21799 | -3/Research | Research terminal network offline 22135 | -3/Research | Identified exit to Research 22172 | -3/Research | Spotted Striker 22195 | -3/Research | Identified exit to Quarantine 22196 | -3/Research | Entered Quarantine 22213 | -3/Quarantine | Watched by a mysterious "MATRIX" hacker. 22218 | -3/Quarantine | Found Quantum Capacitor 22252 | -3/Quarantine | Found Alien Reactor 22252 | -3/Quarantine | Identified Matter Drive 22359 | -3/Quarantine | Found Alien Artifact 22359 | -3/Quarantine | Identified Phase Armor 22372 | -3/Quarantine | Found Alien Artifact 22372 | -3/Quarantine | Identified Core Reset Matrix 22372 | -3/Quarantine | Used Core Reset Matrix 22376 | -3/Quarantine | Detected hypermatrix surge 22376 | -3/Quarantine | Sensed 12 artifacts in vicinity 22408 | -3/Quarantine | Met incapacitated Sigix Warrior 22408 | -3/Quarantine | Lockdown squad dispatched 22410 | -3/Quarantine | Acquired the access code to the Sigix quarantine chamber 22411 | -3/Quarantine | Unlocked Sigix quarantine chamber 22414 | -3/Quarantine | Found Sigix Containment Pod 22555 | -3/Quarantine | Found Core Stripper 22652 | -3/Quarantine | Build established: Alien-Construct 22710 | -3/Quarantine | Spotted Fortress 22805 | -3/Quarantine | Discovered exit to Research (range 5) 22814 | -3/Quarantine | Core integrity fell below 50% 23119 | -3/Quarantine | Build established: Construct 23615 | -3/Quarantine | Destroyed Fortress 23716 | -3/Quarantine | Discovered new exit (range 6) 23716 | -3/Quarantine | Discovered new exit (range 7) 23719 | -3/Quarantine | Identified exit to Section 7 23722 | -3/Quarantine | Identified exit to Protoforge 23761 | -3/Quarantine | Entered Section 7 23762 | -3/Section 7 | Detected hypermatrix surge 23762 | -3/Section 7 | Sensed 22 artifacts in vicinity 23928 | -3/Section 7 | Spotted S7 Guard 23932 | -3/Section 7 | Spotted B-86 Titan 23953 | -3/Section 7 | Destroyed B-86 Titan 23954 | -3/Section 7 | Spotted S7 Guard 23963 | -3/Section 7 | Destroyed S7 Guard 23972 | -3/Section 7 | Destroyed S7 Guard 24011 | -3/Section 7 | First assault squad dispatched 24029 | -3/Section 7 | Incoming assault squad redirected 24118 | -3/Section 7 | Found Core Regenerator 24118 | -3/Section 7 | Used Core Regenerator, restored core integrity (+325) 24175 | -3/Section 7 | Found Core Membrane 24175 | -3/Section 7 | Installed Core Membrane, gained immunity to corruption 24285 | -3/Section 7 | Incoming assault squad redirected 24376 | -3/Section 7 | Discovered exit to Research (range 3) 24389 | -3/Section 7 | Found Integrated Dissipator 24389 | -3/Section 7 | Installed Integrated Dissipator, increased core heat dissipation (+20) 24450 | -3/Section 7 | Found Integrated Dissipator 24450 | -3/Section 7 | Installed Integrated Dissipator, increased core heat dissipation (+20) 24531 | -3/Section 7 | Incoming assault squad redirected 24632 | -3/Section 7 | Spotted Executioner 24632 | -3/Section 7 | Spotted Executioner 24674 | -3/Section 7 | Build established: Alien-Construct 24681 | -3/Section 7 | Destroyed Executioner 24683 | -3/Section 7 | Destroyed Executioner 24721 | -3/Section 7 | Found Matter Drive 24764 | -3/Section 7 | Spotted Striker 24764 | -3/Section 7 | Spotted Striker 24768 | -3/Section 7 | Scanned by Researcher 24780 | -3/Section 7 | Incoming assault squad redirected 24800 | -3/Section 7 | Destroyed Striker 24813 | -3/Section 7 | Destroyed Striker 24860 | -3/Section 7 | Found Sigix Sheargun 24863 | -3/Section 7 | Found Sigix Sheargun 24867 | -3/Section 7 | Intercept squad dispatched 24870 | -3/Section 7 | Spotted Striker 24870 | -3/Section 7 | Spotted Striker 24894 | -3/Section 7 | Destroyed Striker 24896 | -3/Section 7 | Spotted Tracker 24896 | -3/Section 7 | Destroyed Striker 24897 | -3/Section 7 | Spotted Tracker 24918 | -3/Section 7 | Destroyed Tracker 24930 | -3/Section 7 | Destroyed Tracker 24936 | -3/Section 7 | Spotted Combat Programmer 24957 | -3/Section 7 | Destroyed Combat Programmer 24965 | -3/Section 7 | Found Sigix Shearcannon 24973 | -3/Section 7 | Spotted Combat Programmer 24996 | -3/Section 7 | Destroyed Combat Programmer 25119 | -3/Section 7 | Destroyed 7 combat bots 25128 | -3/Section 7 | Lost 4 parts (1p1n2u) 25138 | -3/Section 7 | Spotted Executioner 25139 | -3/Section 7 | Spotted Executioner 25142 | -3/Section 7 | Destroyed Executioner 25148 | -3/Section 7 | Destroyed Executioner 25153 | -3/Section 7 | Found Prototype Processor 25153 | -3/Section 7 | Identified Exp. Core Analyzer 25183 | -3/Section 7 | Activated Sigix Exoskeleton 25183 | -3/Section 7 | Received instructions from Sigix Warrior 25232 | -3/Section 7 | Spotted B-99 Colossus 25255 | -3/Section 7 | Allies destroyed B-99 Colossus 25300 | -3/Section 7 | Found Core Expander 25300 | -3/Section 7 | Installed Core Expander, added new Utility slot 25342 | -3/Section 7 | Found LRC Insulator 25342 | -3/Section 7 | Installed LRC Insulator, 1 resistance modified: EM +25% 25414 | -3/Section 7 | Found Integrity Redistributor 25417 | -3/Section 7 | Used Integrity Redistributor, redistributed integrity to core (+245) 25419 | -3/Section 7 | Found Integrity Redistributor 25439 | -3/Section 7 | Spotted Executioner 25442 | -3/Section 7 | Allies destroyed Executioner 25442 | -3/Section 7 | Spotted Investigator 25456 | -3/Section 7 | Spotted Striker 25481 | -3/Section 7 | Sigix Exoskeleton integrity reduced to 80% 25517 | -3/Section 7 | Destroyed 8 combat bots 25522 | -3/Section 7 | Sigix Exoskeleton integrity reduced to 60% 25543 | -3/Section 7 | Lost 16 parts (3p2n5u6w) 25553 | -3/Section 7 | Allies destroyed Striker 25583 | -3/Section 7 | Allies destroyed Investigator 25590 | -3/Section 7 | Spotted Executioner 25593 | -3/Section 7 | Sigix Exoskeleton integrity reduced to 40% 25607 | -3/Section 7 | Core integrity fell below 20% 25615 | -3/Section 7 | Found Prototype Launcher 25615 | -3/Section 7 | Identified Containment Facilitator 25623 | -3/Section 7 | Destroyed by Executioner with Helical Railgun Last Messages --------------- 140. 25623_ G-67 Veteran stasis bubble strength at 181. 25623_ Stasis bubble strength at 182. 25623_ G-67 Veteran stasis bubble strength at 67. 25623_ M-36 Artificer stasis bubble strength at 130. 25623_ C-45 Heavy ARC bursts open, deploying its payload. 25623_ P-80 Master unfolds itself. 25623_ Striker unfolds itself. 25623_ P-80 Master unfolds itself. 25623_ I-47 Archangel unfolds itself. 25623_ G-67 Veteran stasis bubble strength at 67. 25623_ Imp. Quantum Reactor destroyed. 25623_ G-67 Veteran stasis bubble strength at 67. 25623_ Penetrated by Slug. Map ----- +----------------------------------------------------+ | ??????????????????????????????????# #??#"""""" | | ??????????????????????????????????# #??#"""""" | | ??????????????????????????????????# ##?#"""""" | | ???????????????????????############==%###=[! | | ???????????????????????#===[%!=[*[==!!*%!=[[=* | | ???????????????????????#%[%%=[![%/%=!!!*%!%=%! | | ???????????????????????#=%###############%%[!= | | ???????????????????#####[!*#????????????#""*% | | ????????????????#### !#[/#####?????????#" " | | ????????????????#" " "%!=!"""#?????????#"""""""" | | ????????????????#" !=!=!!"""#?????????######### | | ????????????????#" !Ki!"""#?????????????????# | | ????????????????#""""" gg% ""#?????????????????# | | ????????????????#""""" % bp"""#?????????????????# | | ????????????????#""""" i gp"""#?????????????????# | | ????????????????#""""" bi """#?###############?# | | ????????????????#" il """#?#"""""""""""" #?# | | ????????????????#"""" bgg """#?#"" """" #?# | | ????????????????#"""" gm """#?#"" """" " #?# | | ????????????????########mg#####?#"" """ =%" %*### | | ???????????????????????#E*#?????#"" " !%/" == | | ???????????????????????#=%#?????# !h![=!%*=!%/ | | ???????????????????????#gg#######= h! %!%!!*#### | | ???????????????????????#%l#!=#X=%!%[= """!""#??? | | ???????????????????????#ggg*g=%/!=! """" ""#??? | | ???????????????????????#*@p!![=%=! """" ""#??? | | ???????????????????????########## """" ""#??? | | ????????????????????????????????#"""T """""""#??? | | ????????????????????????????????#####"""#######??? | | ???????????????????????????????????#" " ###??????? | | ???????????????????????????????????#" "##"##?????? | | ???????????????????????????????????# "" "#?????? | | ???????????????????????????????????#" ##?????? | | ????????????????????????????????????####"##??????? | | ???????????????????????????????????????###???????? | | ?????????????????????????????????????????????????? | | ?????????????????????????????????????????????????? | | ?????????????????????????????????????????????????? | | ?????????????????????????????????????????????????? | | ?????????????????????????????????????????????????? | | ?????????????????????????????????????????????????? | | ?????????????????????????????????????????????????? | | | | | | | | | | | | | | | | | +----------------------------------------------------+ Best States ------------- Heat Dissipation 155 Coolant Potential 80 Energy Generation 95 Energy Capacity 755 Matter Stores 300 Matter Capacity 300 Sight Range 16 Robot Scan Range 16 Terrain Scan Range 20 Terrain Scan Density 110 Armor Coverage 1200 Resistance: KI 25 Resistance: EM 25 Core Shielding 30 Propulsion Shielding 33 Point Defense Rating 160 Weapon Cycling 30 Phase Shifting 10 Evasion (%) 70 Targeting Accuracy 13 Core Analysis 8 Armor Integrity Analysis 40 Recoil Reduction 5 Matter Filtering 30 Offensive Hacking 10 Item Schematics ----------------- Adv. KE Penetrator | -3/Section 7 | Archive Kinetic Spear | -3/Section 7 | Archive Robot Schematics ------------------ None Fabricated ------------ Nothing Repaired ---------- Lgt. Assault Rifle | 13% | -10/Materials Studied --------- HERF Cannon | -3/Quarantine | Hacked Alien Tech Used ----------------- Matter Drive Phase Armor Core Reset Matrix Core Regenerator Core Membrane Integrated Dissipator Sigix Sheargun Sigix Shearcannon Core Expander LRC Insulator Integrity Redistributor Achievements -------------- Bigger Is Better Coming In Hot Do Not Disturb Everyone Must Die Hornet's Nest Into The Breach Main Advantage More Power To You Nice Directions, Buddy Signature Confirmed Survival Of The Most Covered That Tickles Challenges ------------ None Game ------ Seed TractorIonDesublimator Manual? 0 Play Time 07:30:01 Cumulative 160.3 hours Start 2026.03.20 @ 11:41:16 End 2026.03.25 @ 01:25:46 Sessions 10 Manual Loads 0 Difficulty Rogue Special Mode None Game No. 65 Rogue 65 Adventurer 0 Explorer 0 Win Type - Total 4 Types 2/0/0/2/0/0/0/0/0/0 Lore% 39 Gallery% 52 Achievement% 42 Wizard Run 0 Options --------- Layout 2 ASCII 0 Keyboard 1 Movement Numpad Keybinds 0 Fullscreen 2 Font 24/Smallcaps Map View 50x44 Zoom Use 0% Tactical HUD 1 Map Filters NONE Filters NONE Steam 1 RUN: e1055223-682c-4a8d-b39d-0b89591e0618